[Event "Titled Tuesday Blitz July 05 Late 2022"]
[White "So, Wesley"]
[Black "Kosteniuk, Alexandra"]
[WhiteFideId "5202213"]
[BlackFideId "4128125"]
[WhiteElo "2763"]
[BlackElo "2469"]
[Result "1-0"]
[Round "09"]
[TimeControl "180+1"]
[Date "2022.07.05"]
[WhiteClock "0:00:17"]
[BlackClock "0:00:12"]

1. e4 {[%clk 0:03:00]}  e5 {[%clk 0:02:55]} 2. Nf3 {[%clk 0:03:00]}  Nc6 {[%clk 0:02:56]} 3. Bb5 {[%clk 0:03:01]}  a6 {[%clk 0:02:56]} 4. Ba4 {[%clk 0:03:01]}  Nf6 {[%clk 0:02:56]} 5. O-O {[%clk 0:03:01]}  Be7 {[%clk 0:02:57]} 6. d3 {[%clk 0:03:00]}  b5 {[%clk 0:02:56]} 7. Bb3 {[%clk 0:03:00]}  O-O {[%clk 0:02:55]} 8. a4 {[%clk 0:02:52]}  b4 {[%clk 0:02:54]} 9. Re1 {[%clk 0:02:48]}  d6 {[%clk 0:02:52]} 10. a5 {[%clk 0:02:47]}  Rb8 {[%clk 0:02:49]} 11. Nbd2 {[%clk 0:02:44]}  Be6 {[%clk 0:02:48]} 12. Bxe6 {[%clk 0:02:38]}  fxe6 {[%clk 0:02:49]} 13. Nb3 {[%clk 0:02:37]}  Qe8 {[%clk 0:02:44]} 14. d4 {[%clk 0:02:35]}  Rb5 {[%clk 0:02:21]} 15. dxe5 {[%clk 0:02:23]}  dxe5 {[%clk 0:02:21]} 16. Qe2 {[%clk 0:02:21]}  Bd6 {[%clk 0:02:15]} 17. Qc4 {[%clk 0:02:12]}  Nh5 {[%clk 0:02:10]} 18. Be3 {[%clk 0:02:11]}  Nf4 {[%clk 0:02:01]} 19. Bxf4 {[%clk 0:02:02]}  Rxf4 {[%clk 0:02:02]} 20. Re3 {[%clk 0:02:00]}  Nd8 {[%clk 0:01:54]} 21. Rd1 {[%clk 0:01:47]}  h6 {[%clk 0:01:52]} 22. Ne1 {[%clk 0:01:43]}  Nb7 {[%clk 0:01:41]} 23. Ra1 {[%clk 0:01:28]}  Kh7 {[%clk 0:01:33]} 24. Qe2 {[%clk 0:01:26]}  Qg6 {[%clk 0:01:19]} 25. Nd3 {[%clk 0:01:24]}  Rf7 {[%clk 0:01:16]} 26. Rg3 {[%clk 0:01:24]}  Qf6 {[%clk 0:01:15]} 27. h3 {[%clk 0:01:14]}  c5 {[%clk 0:01:10]} 28. Nd2 {[%clk 0:01:06]}  Rxa5 {[%clk 0:01:04]} 29. Rd1 {[%clk 0:01:02]}  Bc7 {[%clk 0:01:00]} 30. Nc4 {[%clk 0:01:03]}  Rb5 {[%clk 0:00:59]} 31. b3 {[%clk 0:01:02]}  Rd7 {[%clk 0:00:40]} 32. Ra1 {[%clk 0:00:58]}  Rd4 {[%clk 0:00:34]} 33. Rxa6 {[%clk 0:00:56]}  Nd6 {[%clk 0:00:32]} 34. Nxd6 {[%clk 0:00:49]}  Rxd6 {[%clk 0:00:32]} 35. Ra7 {[%clk 0:00:49]}  Qd8 {[%clk 0:00:21]} 36. Qg4 {[%clk 0:00:45]}  Rd7 {[%clk 0:00:20]} 37. Qxe6 {[%clk 0:00:44]}  Rb6 {[%clk 0:00:19]} 38. Qf5+ {[%clk 0:00:42]}  g6 {[%clk 0:00:20]} 39. Qg4 {[%clk 0:00:37]}  h5 {[%clk 0:00:18]} 40. Qe2 {[%clk 0:00:35]}  Bd6 {[%clk 0:00:17]} 41. Rxd7+ {[%clk 0:00:33]}  Qxd7 {[%clk 0:00:18]} 42. Nb2 {[%clk 0:00:32]}  Rb8 {[%clk 0:00:17]} 43. Nc4 {[%clk 0:00:31]}  Bc7 {[%clk 0:00:17]} 44. Rd3 {[%clk 0:00:30]}  Qf7 {[%clk 0:00:17]} 45. Qd2 {[%clk 0:00:30]}  Re8 {[%clk 0:00:16]} 46. Rd7 {[%clk 0:00:29]}  Re7 {[%clk 0:00:17]} 47. Rxe7 {[%clk 0:00:28]}  Qxe7 {[%clk 0:00:18]} 48. Qd5 {[%clk 0:00:28]}  Kh6 {[%clk 0:00:18]} 49. Ne3 {[%clk 0:00:26]}  Bd6 {[%clk 0:00:16]} 50. h4 {[%clk 0:00:25]}  Kh7 {[%clk 0:00:15]} 51. g3 {[%clk 0:00:25]}  Bc7 {[%clk 0:00:15]} 52. Kg2 {[%clk 0:00:25]}  Bd6 {[%clk 0:00:15]} 53. Qc6 {[%clk 0:00:23]}  Qc7 {[%clk 0:00:13]} 54. Qe8 {[%clk 0:00:21]}  Qe7 {[%clk 0:00:12]} 55. Qxe7+ {[%clk 0:00:21]}  Bxe7 {[%clk 0:00:12]} 56. Nc4 {[%clk 0:00:21]}  Bf6 {[%clk 0:00:11]} 57. Nb6 {[%clk 0:00:22]}  Be7 {[%clk 0:00:10]} 58. Nc4 {[%clk 0:00:18]}  Bf6 {[%clk 0:00:09]} 59. Kf3 {[%clk 0:00:18]}  Kg7 {[%clk 0:00:10]} 60. Ke3 {[%clk 0:00:18]}  Kf7 {[%clk 0:00:10]} 61. Kd3 {[%clk 0:00:19]}  Ke6 {[%clk 0:00:10]} 62. Nb2 {[%clk 0:00:17]}  Kd6 {[%clk 0:00:09]} 63. Kc4 {[%clk 0:00:18]}  g5 {[%clk 0:00:09]} 64. hxg5 {[%clk 0:00:17]}  Bxg5 {[%clk 0:00:10]} 65. Nd3 {[%clk 0:00:18]}  h4 {[%clk 0:00:11]} 66. gxh4 {[%clk 0:00:17]}  Bxh4 {[%clk 0:00:12]} 67. f3 {[%clk 0:00:17]} 1-0


[Site "https://www.chess.com"]

[Event "Titled Tuesday Blitz July 05 Late 2022"]
[White "Storme, Isak"]
[Black "Maghsoodloo, Parham"]
[WhiteFideId "1728113"]
[BlackFideId "12539929"]
[WhiteElo "2205"]
[BlackElo "2607"]
[Result "0-1"]
[Round "09"]
[TimeControl "180+1"]
[Date "2022.07.05"]
[WhiteClock "0:00:02"]
[BlackClock "0:00:08"]

1. Nf3 {[%clk 0:03:00]}  d5 {[%clk 0:02:59]} 2. b3 {[%clk 0:03:00]}  Bf5 {[%clk 0:02:59]} 3. Bb2 {[%clk 0:03:00]}  h6 {[%clk 0:02:59]} 4. e3 {[%clk 0:02:59]}  Nf6 {[%clk 0:03:00]} 5. c4 {[%clk 0:02:59]}  e6 {[%clk 0:03:00]} 6. Nc3 {[%clk 0:02:58]}  Nbd7 {[%clk 0:03:00]} 7. d3 {[%clk 0:02:57]}  c6 {[%clk 0:02:55]} 8. Be2 {[%clk 0:02:57]}  Be7 {[%clk 0:02:55]} 9. O-O {[%clk 0:02:56]}  O-O {[%clk 0:02:56]} 10. Re1 {[%clk 0:02:50]}  Bh7 {[%clk 0:02:56]} 11. Bf1 {[%clk 0:02:51]}  a5 {[%clk 0:02:56]} 12. g3 {[%clk 0:02:50]}  Re8 {[%clk 0:02:45]} 13. d4 {[%clk 0:02:35]}  Ne4 {[%clk 0:02:29]} 14. Nxe4 {[%clk 0:02:29]}  Bxe4 {[%clk 0:02:29]} 15. Bg2 {[%clk 0:02:27]}  a4 {[%clk 0:02:28]} 16. Nd2 {[%clk 0:02:11]}  Bxg2 {[%clk 0:02:27]} 17. Kxg2 {[%clk 0:02:11]}  Bb4 {[%clk 0:02:27]} 18. Qc2 {[%clk 0:02:09]}  Qa5 {[%clk 0:02:20]} 19. Red1 {[%clk 0:02:03]}  b5 {[%clk 0:02:18]} 20. Nf3 {[%clk 0:01:58]}  a3 {[%clk 0:02:15]} 21. Bc1 {[%clk 0:01:57]}  bxc4 {[%clk 0:02:12]} 22. bxc4 {[%clk 0:01:57]}  Bc3 {[%clk 0:01:51]} 23. Rb1 {[%clk 0:01:51]}  dxc4 {[%clk 0:01:51]} 24. Bd2 {[%clk 0:01:43]}  Bxd2 {[%clk 0:01:51]} 25. Nxd2 {[%clk 0:01:42]}  c3 {[%clk 0:01:38]} 26. Nb3 {[%clk 0:01:28]}  Qd5+ {[%clk 0:01:38]} 27. e4 {[%clk 0:01:23]}  Qh5 {[%clk 0:01:38]} 28. Qxc3 {[%clk 0:01:21]}  e5 {[%clk 0:01:17]} 29. f3 {[%clk 0:00:45]}  Rac8 {[%clk 0:00:25]} 30. Rbc1 {[%clk 0:00:45]}  f5 {[%clk 0:00:18]} 31. exf5 {[%clk 0:00:24]}  e4 {[%clk 0:00:18]} 32. g4 {[%clk 0:00:21]}  Qh4 {[%clk 0:00:17]} 33. Qe3 {[%clk 0:00:13]}  Nf6 {[%clk 0:00:16]} 34. Qf2 {[%clk 0:00:08]}  exf3+ {[%clk 0:00:15]} 35. Qxf3 {[%clk 0:00:04]}  Nxg4 {[%clk 0:00:11]} 36. Qg3 {[%clk 0:00:03]}  Ne3+ {[%clk 0:00:09]} 37. Kh1 {[%clk 0:00:03]}  Qxg3 {[%clk 0:00:07]} 38. hxg3 {[%clk 0:00:03]}  Nxd1 {[%clk 0:00:08]} 39. Rxd1 {[%clk 0:00:04]}  Re2 {[%clk 0:00:08]} 40. Nc1 {[%clk 0:00:02]}  Rc2 {[%clk 0:00:08]} 41. Nd3 {[%clk 0:00:02]}  Rxa2 {[%clk 0:00:07]} 42. Ne5 {[%clk 0:00:02]}  Re2 {[%clk 0:00:07]} 43. Ra1 {[%clk 0:00:02]}  a2 {[%clk 0:00:07]} 44. Nd7 {[%clk 0:00:03]}  Rd8 {[%clk 0:00:06]} 45. Nc5 {[%clk 0:00:01]}  Rxd4 {[%clk 0:00:07]} 46. Nb3 {[%clk 0:00:01]}  Rb4 {[%clk 0:00:07]} 47. Na5 {[%clk 0:00:02]}  Rb1+ {[%clk 0:00:07]} 48. Rxb1 {[%clk 0:00:02]}  axb1=Q# {[%clk 0:00:08]} 0-1


[Site "https://www.chess.com"]

[Event "Titled Tuesday Blitz July 05 Late 2022"]
[White "Timofeev, Artyom"]
[Black "Dilanyan, Grigor"]
[WhiteFideId "4140419"]
[BlackFideId "13303570"]
[WhiteElo "2578"]
[BlackElo "2279"]
[Result "1-0"]
[Round "09"]
[TimeControl "180+1"]
[Date "2022.07.05"]
[WhiteClock "0:00:58"]
[BlackClock "0:00:18"]

1. e4 {[%clk 0:03:00]}  e5 {[%clk 0:02:59]} 2. Nf3 {[%clk 0:02:59]}  Nc6 {[%clk 0:02:58]} 3. Bb5 {[%clk 0:02:59]}  a6 {[%clk 0:02:58]} 4. Ba4 {[%clk 0:02:59]}  Nf6 {[%clk 0:02:58]} 5. d3 {[%clk 0:02:59]}  d6 {[%clk 0:02:50]} 6. c3 {[%clk 0:02:57]}  Be7 {[%clk 0:02:47]} 7. O-O {[%clk 0:02:57]}  O-O {[%clk 0:02:47]} 8. Nbd2 {[%clk 0:02:56]}  Re8 {[%clk 0:02:48]} 9. Re1 {[%clk 0:02:55]}  Bf8 {[%clk 0:02:45]} 10. Nf1 {[%clk 0:02:53]}  Bd7 {[%clk 0:02:45]} 11. Ng3 {[%clk 0:02:51]}  b5 {[%clk 0:02:45]} 12. Bc2 {[%clk 0:02:50]}  a5 {[%clk 0:02:46]} 13. h3 {[%clk 0:02:46]}  b4 {[%clk 0:02:44]} 14. d4 {[%clk 0:02:41]}  bxc3 {[%clk 0:02:44]} 15. bxc3 {[%clk 0:02:41]}  exd4 {[%clk 0:02:45]} 16. cxd4 {[%clk 0:02:41]}  Nb4 {[%clk 0:02:45]} 17. Bb1 {[%clk 0:02:40]}  c5 {[%clk 0:02:45]} 18. a3 {[%clk 0:02:39]}  Nc6 {[%clk 0:02:42]} 19. d5 {[%clk 0:02:40]}  Na7 {[%clk 0:02:32]} 20. Bd3 {[%clk 0:02:37]}  Nb5 {[%clk 0:02:32]} 21. Bb2 {[%clk 0:02:36]}  a4 {[%clk 0:02:25]} 22. Qd2 {[%clk 0:02:31]}  Qa5 {[%clk 0:02:15]} 23. Qf4 {[%clk 0:02:22]}  Qd8 {[%clk 0:02:07]} 24. Rad1 {[%clk 0:02:09]}  Rb8 {[%clk 0:02:05]} 25. e5 {[%clk 0:01:45]}  Nxd5 {[%clk 0:02:05]} 26. Bxh7+ {[%clk 0:01:32]}  Kxh7 {[%clk 0:02:02]} 27. Rxd5 {[%clk 0:01:28]}  Be6 {[%clk 0:01:57]} 28. Ng5+ {[%clk 0:01:27]}  Kg8 {[%clk 0:01:52]} 29. Qh4 {[%clk 0:01:24]}  Qxg5 {[%clk 0:01:51]} 30. Qxg5 {[%clk 0:01:24]}  Bxd5 {[%clk 0:01:52]} 31. Nh5 {[%clk 0:01:22]}  Kh7 {[%clk 0:01:05]} 32. e6 {[%clk 0:01:05]}  Rxe6 {[%clk 0:00:58]} 33. Rxe6 {[%clk 0:01:04]}  Nd4 {[%clk 0:00:20]} 34. Bxd4 {[%clk 0:01:01]}  cxd4 {[%clk 0:00:18]} 35. Rh6+ {[%clk 0:00:58]}  gxh6 {[%clk 0:00:18]} 36. Nf6+ {[%clk 0:00:58]} 1-0


[Site "https://www.chess.com"]

[Event "Titled Tuesday Blitz July 05 Late 2022"]
[White "Vasquez Schroeder, Rodrigo"]
[Black "Barria Zuniga, Daniel"]
[WhiteFideId "3400042"]
[BlackFideId "3400816"]
[WhiteElo "2567"]
[BlackElo "2414"]
[Result "1-0"]
[Round "09"]
[TimeControl "180+1"]
[Date "2022.07.05"]
[WhiteClock "0:02:03"]
[BlackClock "0:00:41"]

1. e4 {[%clk 0:03:00]}  c5 {[%clk 0:02:59]} 2. Nf3 {[%clk 0:03:00]}  e6 {[%clk 0:02:59]} 3. d4 {[%clk 0:03:00]}  cxd4 {[%clk 0:02:59]} 4. Nxd4 {[%clk 0:03:00]}  a6 {[%clk 0:03:00]} 5. Bd3 {[%clk 0:02:58]}  Bc5 {[%clk 0:03:00]} 6. Nb3 {[%clk 0:02:58]}  Ba7 {[%clk 0:03:00]} 7. Qe2 {[%clk 0:02:56]}  Nc6 {[%clk 0:02:59]} 8. Be3 {[%clk 0:02:56]}  d6 {[%clk 0:02:57]} 9. O-O {[%clk 0:02:53]}  Nge7 {[%clk 0:02:56]} 10. c4 {[%clk 0:02:52]}  Bxe3 {[%clk 0:02:54]} 11. Qxe3 {[%clk 0:02:52]}  e5 {[%clk 0:02:55]} 12. Nc3 {[%clk 0:02:50]}  O-O {[%clk 0:02:54]} 13. Rfd1 {[%clk 0:02:50]}  b6 {[%clk 0:02:54]} 14. Be2 {[%clk 0:02:50]}  a5 {[%clk 0:02:52]} 15. Nb5 {[%clk 0:02:44]}  a4 {[%clk 0:02:40]} 16. Rxd6 {[%clk 0:02:40]}  Bd7 {[%clk 0:02:39]} 17. Nd2 {[%clk 0:02:37]}  Nc8 {[%clk 0:02:28]} 18. Rd3 {[%clk 0:02:35]}  Nb4 {[%clk 0:02:26]} 19. Rc3 {[%clk 0:02:35]}  Bxb5 {[%clk 0:02:26]} 20. cxb5 {[%clk 0:02:36]}  Qd4 {[%clk 0:02:25]} 21. a3 {[%clk 0:02:30]}  Rd8 {[%clk 0:01:52]} 22. Nf3 {[%clk 0:02:30]}  Qxe3 {[%clk 0:01:51]} 23. fxe3 {[%clk 0:02:30]}  Na2 {[%clk 0:01:21]} 24. Rxa2 {[%clk 0:02:26]}  f6 {[%clk 0:01:22]} 25. Ra1 {[%clk 0:02:23]}  Nd6 {[%clk 0:01:21]} 26. Bd3 {[%clk 0:02:22]}  Kf8 {[%clk 0:01:15]} 27. Rac1 {[%clk 0:02:20]}  Nb7 {[%clk 0:01:14]} 28. Bc4 {[%clk 0:02:18]}  Nc5 {[%clk 0:01:12]} 29. Bd5 {[%clk 0:02:17]}  Ra5 {[%clk 0:01:10]} 30. Rxc5 {[%clk 0:02:15]}  bxc5 {[%clk 0:01:09]} 31. Rxc5 {[%clk 0:02:15]}  Rb8 {[%clk 0:01:03]} 32. Bc6 {[%clk 0:02:15]}  Ke7 {[%clk 0:01:03]} 33. Kf2 {[%clk 0:02:12]}  Kd6 {[%clk 0:00:54]} 34. Rd5+ {[%clk 0:02:12]}  Ke6 {[%clk 0:00:55]} 35. Nd2 {[%clk 0:02:09]}  Ra7 {[%clk 0:00:41]} 36. Nc4 {[%clk 0:02:06]}  Rc7 {[%clk 0:00:41]} 37. Ke2 {[%clk 0:02:03]} 1-0


[Site "https://www.chess.com"]

[Event "Titled Tuesday Blitz July 05 Late 2022"]
[White "Veiga, Jose Francisco R P Neves"]
[Black "Idani, Pouya"]
[WhiteFideId "1930087"]
[BlackFideId "12510130"]
[WhiteElo "2288"]
[BlackElo "2610"]
[Result "1-0"]
[Round "09"]
[TimeControl "180+1"]
[Date "2022.07.05"]
[WhiteClock "0:00:20"]
[BlackClock "0:00:01"]

1. e4 {[%clk 0:02:56]}  c5 {[%clk 0:02:55]} 2. Nf3 {[%clk 0:02:52]}  e6 {[%clk 0:02:54]} 3. d4 {[%clk 0:02:52]}  cxd4 {[%clk 0:02:55]} 4. Nxd4 {[%clk 0:02:53]}  Nc6 {[%clk 0:02:55]} 5. Nc3 {[%clk 0:02:52]}  Qc7 {[%clk 0:02:54]} 6. Be3 {[%clk 0:02:42]}  a6 {[%clk 0:02:52]} 7. Qf3 {[%clk 0:02:41]}  Bd6 {[%clk 0:02:52]} 8. O-O-O {[%clk 0:02:35]}  Be5 {[%clk 0:02:51]} 9. Nxc6 {[%clk 0:02:21]}  bxc6 {[%clk 0:02:35]} 10. Bd4 {[%clk 0:02:20]}  Bxd4 {[%clk 0:02:26]} 11. Rxd4 {[%clk 0:02:20]}  Nf6 {[%clk 0:02:26]} 12. Qg3 {[%clk 0:02:13]}  Qxg3 {[%clk 0:02:21]} 13. hxg3 {[%clk 0:02:14]}  d5 {[%clk 0:02:21]} 14. exd5 {[%clk 0:02:09]}  cxd5 {[%clk 0:02:18]} 15. Na4 {[%clk 0:02:02]}  Rb8 {[%clk 0:01:49]} 16. Nc5 {[%clk 0:01:47]}  O-O {[%clk 0:00:49]} 17. f4 {[%clk 0:01:15]}  Nd7 {[%clk 0:00:44]} 18. Nxa6 {[%clk 0:00:45]}  Bxa6 {[%clk 0:00:32]} 19. Bxa6 {[%clk 0:00:45]}  Ra8 {[%clk 0:00:33]} 20. Bd3 {[%clk 0:00:45]}  g6 {[%clk 0:00:24]} 21. a3 {[%clk 0:00:43]}  Rfc8 {[%clk 0:00:19]} 22. Kd2 {[%clk 0:00:43]}  Nb6 {[%clk 0:00:18]} 23. Rb4 {[%clk 0:00:41]}  Nd7 {[%clk 0:00:17]} 24. Rc1 {[%clk 0:00:38]}  Nc5 {[%clk 0:00:15]} 25. Ke3 {[%clk 0:00:31]}  Kg7 {[%clk 0:00:14]} 26. Rb5 {[%clk 0:00:30]}  Nd7 {[%clk 0:00:07]} 27. c4 {[%clk 0:00:29]}  dxc4 {[%clk 0:00:05]} 28. Rxc4 {[%clk 0:00:29]}  Rd8 {[%clk 0:00:04]} 29. Rd4 {[%clk 0:00:28]}  Nf6 {[%clk 0:00:03]} 30. Rxd8 {[%clk 0:00:29]}  Rxd8 {[%clk 0:00:04]} 31. Be2 {[%clk 0:00:27]}  h5 {[%clk 0:00:04]} 32. a4 {[%clk 0:00:26]}  Nd5+ {[%clk 0:00:03]} 33. Kf2 {[%clk 0:00:23]}  h4 {[%clk 0:00:01]} 34. Bf3 {[%clk 0:00:20]} 1-0


[Site "https://www.chess.com"]

[Event "Titled Tuesday Blitz July 05 Late 2022"]
[White "Voege, Tobias"]
[Black "Mikhalsky, Vladimir"]
[WhiteFideId "1270513"]
[BlackFideId "14144352"]
[WhiteElo "2379"]
[BlackElo "2301"]
[Result "0-1"]
[Round "09"]
[TimeControl "180+1"]
[Date "2022.07.06"]
[WhiteClock "0:00:12"]
[BlackClock "0:00:14"]

1. e4 {[%clk 0:03:00]}  g6 {[%clk 0:02:56]} 2. d4 {[%clk 0:02:59]}  Bg7 {[%clk 0:02:56]} 3. c4 {[%clk 0:03:00]}  d6 {[%clk 0:02:56]} 4. Nc3 {[%clk 0:03:00]}  Nf6 {[%clk 0:02:57]} 5. Nf3 {[%clk 0:02:57]}  O-O {[%clk 0:02:57]} 6. h3 {[%clk 0:02:56]}  e5 {[%clk 0:02:58]} 7. d5 {[%clk 0:02:55]}  Nh5 {[%clk 0:02:57]} 8. g3 {[%clk 0:02:54]}  Qe8 {[%clk 0:02:52]} 9. Bg2 {[%clk 0:02:52]}  f5 {[%clk 0:02:51]} 10. exf5 {[%clk 0:02:43]}  gxf5 {[%clk 0:02:50]} 11. Ng5 {[%clk 0:02:44]}  e4 {[%clk 0:02:30]} 12. Ne6 {[%clk 0:02:12]}  Bxe6 {[%clk 0:02:28]} 13. dxe6 {[%clk 0:02:13]}  Nf6 {[%clk 0:02:21]} 14. Nd5 {[%clk 0:02:04]}  Na6 {[%clk 0:02:20]} 15. e7 {[%clk 0:01:52]}  Rf7 {[%clk 0:02:20]} 16. O-O {[%clk 0:01:43]}  Nxd5 {[%clk 0:02:07]} 17. Qxd5 {[%clk 0:01:44]}  Qc6 {[%clk 0:01:54]} 18. Bg5 {[%clk 0:01:19]}  Re8 {[%clk 0:01:38]} 19. f3 {[%clk 0:00:59]}  Qxd5 {[%clk 0:01:37]} 20. cxd5 {[%clk 0:01:00]}  h6 {[%clk 0:01:36]} 21. Bh4 {[%clk 0:00:54]}  Bxb2 {[%clk 0:01:25]} 22. Rab1 {[%clk 0:00:52]}  Bd4+ {[%clk 0:01:24]} 23. Kh2 {[%clk 0:00:52]}  e3 {[%clk 0:01:22]} 24. f4 {[%clk 0:00:43]}  Nc5 {[%clk 0:01:01]} 25. Bf3 {[%clk 0:00:38]}  Bf6 {[%clk 0:01:00]} 26. Bh5 {[%clk 0:00:34]}  Bxh4 {[%clk 0:00:58]} 27. gxh4 {[%clk 0:00:30]}  Rexe7 {[%clk 0:00:57]} 28. Bxf7+ {[%clk 0:00:28]}  Kxf7 {[%clk 0:00:56]} 29. Kg2 {[%clk 0:00:15]}  e2 {[%clk 0:00:55]} 30. Rg1 {[%clk 0:00:13]}  Nd3 {[%clk 0:00:54]} 31. Rge1 {[%clk 0:00:12]}  Nxe1+ {[%clk 0:00:49]} 32. Rxe1 {[%clk 0:00:13]}  c6 {[%clk 0:00:44]} 33. dxc6 {[%clk 0:00:12]}  bxc6 {[%clk 0:00:45]} 34. Kf2 {[%clk 0:00:13]}  d5 {[%clk 0:00:43]} 35. h5 {[%clk 0:00:13]}  d4 {[%clk 0:00:43]} 36. Rc1 {[%clk 0:00:11]}  d3 {[%clk 0:00:42]} 37. Ke1 {[%clk 0:00:11]}  Rd7 {[%clk 0:00:32]} 38. Kd2 {[%clk 0:00:11]}  Rd6 {[%clk 0:00:32]} 39. Rg1 {[%clk 0:00:11]}  c5 {[%clk 0:00:31]} 40. Rc1 {[%clk 0:00:11]}  Rd5 {[%clk 0:00:31]} 41. a4 {[%clk 0:00:10]}  a5 {[%clk 0:00:30]} 42. Rb1 {[%clk 0:00:10]}  c4 {[%clk 0:00:30]} 43. Rc1 {[%clk 0:00:10]}  Rc5 {[%clk 0:00:30]} 44. Rc3 {[%clk 0:00:10]}  Ke6 {[%clk 0:00:29]} 45. Rc1 {[%clk 0:00:09]}  Kd5 {[%clk 0:00:29]} 46. Rg1 {[%clk 0:00:08]}  Kd4 {[%clk 0:00:29]} 47. Rg6 {[%clk 0:00:08]}  c3+ {[%clk 0:00:26]} 48. Ke1 {[%clk 0:00:08]}  Ke3 {[%clk 0:00:23]} 49. Re6+ {[%clk 0:00:08]}  Kf3 {[%clk 0:00:23]} 50. Rd6 {[%clk 0:00:07]}  d2+ {[%clk 0:00:21]} 51. Rxd2 {[%clk 0:00:08]}  cxd2+ {[%clk 0:00:22]} 52. Kxd2 {[%clk 0:00:09]}  Kf2 {[%clk 0:00:22]} 53. h4 {[%clk 0:00:10]}  e1=Q+ {[%clk 0:00:18]} 54. Kd3 {[%clk 0:00:10]}  Qe4+ {[%clk 0:00:17]} 55. Kd2 {[%clk 0:00:11]}  Rc2+ {[%clk 0:00:17]} 56. Kd1 {[%clk 0:00:12]}  Re2 {[%clk 0:00:16]} 57. Kc1 {[%clk 0:00:12]}  Qc4+ {[%clk 0:00:16]} 58. Kd1 {[%clk 0:00:11]}  Qxa4+ {[%clk 0:00:15]} 59. Kc1 {[%clk 0:00:11]}  Qc6+ {[%clk 0:00:14]} 60. Kd1 {[%clk 0:00:12]}  Qh1# {[%clk 0:00:14]} 0-1


[Site "https://www.chess.com"]

[Event "Titled Tuesday Blitz July 05 Late 2022"]
[White "Zajic, Milan"]
[Black "Olenik Campa, Rudi"]
[WhiteFideId "912336"]
[BlackFideId "14633264"]
[WhiteElo "2445"]
[BlackElo "2066"]
[Result "0-1"]
[Round "09"]
[TimeControl "180+1"]
[Date "2022.07.05"]
[WhiteClock "0:00:08"]
[BlackClock "0:00:58"]

1. e4 {[%clk 0:03:00]}  c5 {[%clk 0:02:59]} 2. Nf3 {[%clk 0:03:00]}  Nc6 {[%clk 0:02:59]} 3. Bb5 {[%clk 0:03:00]}  g6 {[%clk 0:02:58]} 4. Bxc6 {[%clk 0:02:59]}  dxc6 {[%clk 0:02:59]} 5. d3 {[%clk 0:02:58]}  Bg7 {[%clk 0:02:59]} 6. h3 {[%clk 0:02:58]}  Qc7 {[%clk 0:02:59]} 7. O-O {[%clk 0:02:56]}  h6 {[%clk 0:02:58]} 8. Nc3 {[%clk 0:02:52]}  g5 {[%clk 0:02:58]} 9. Be3 {[%clk 0:02:22]}  g4 {[%clk 0:02:58]} 10. hxg4 {[%clk 0:02:22]}  Bxg4 {[%clk 0:02:59]} 11. Bxc5 {[%clk 0:02:22]}  h5 {[%clk 0:02:59]} 12. Qd2 {[%clk 0:01:36]}  Nf6 {[%clk 0:02:57]} 13. Nh2 {[%clk 0:01:35]}  Nd7 {[%clk 0:02:50]} 14. Be3 {[%clk 0:01:28]}  O-O-O {[%clk 0:02:47]} 15. f4 {[%clk 0:01:23]}  e5 {[%clk 0:02:46]} 16. f5 {[%clk 0:01:22]}  Bf6 {[%clk 0:02:43]} 17. Qf2 {[%clk 0:01:21]}  Rdg8 {[%clk 0:02:41]} 18. Kh1 {[%clk 0:01:00]}  Qd8 {[%clk 0:02:36]} 19. a4 {[%clk 0:00:47]}  Bh4 {[%clk 0:02:34]} 20. g3 {[%clk 0:00:48]}  Bf6 {[%clk 0:02:24]} 21. Rg1 {[%clk 0:00:44]}  h4 {[%clk 0:02:19]} 22. Raf1 {[%clk 0:00:17]}  hxg3 {[%clk 0:02:17]} 23. Qxg3 {[%clk 0:00:17]}  Rh3 {[%clk 0:02:12]} 24. Qxg4 {[%clk 0:00:15]}  Rxg4 {[%clk 0:02:11]} 25. Rxg4 {[%clk 0:00:16]}  Rxe3 {[%clk 0:02:11]} 26. Rg2 {[%clk 0:00:14]}  Rh3 {[%clk 0:02:11]} 27. Kg1 {[%clk 0:00:14]}  Qh8 {[%clk 0:02:10]} 28. Ng4 {[%clk 0:00:14]}  Qh4 {[%clk 0:02:05]} 29. Nf2 {[%clk 0:00:13]}  Bg5 {[%clk 0:02:01]} 30. Nxh3 {[%clk 0:00:13]}  Qxh3 {[%clk 0:01:57]} 31. Nd1 {[%clk 0:00:13]}  Bf4 {[%clk 0:01:54]} 32. Nf2 {[%clk 0:00:13]}  Qh4 {[%clk 0:01:52]} 33. Ng4 {[%clk 0:00:09]}  Nf6 {[%clk 0:01:44]} 34. Nxf6 {[%clk 0:00:10]}  Be3+ {[%clk 0:01:44]} 35. Rff2 {[%clk 0:00:10]}  Bxf2+ {[%clk 0:01:43]} 36. Rxf2 {[%clk 0:00:11]}  Qxf6 {[%clk 0:01:43]} 37. b3 {[%clk 0:00:12]}  Qg5+ {[%clk 0:01:42]} 38. Kf1 {[%clk 0:00:13]}  Qc1+ {[%clk 0:01:42]} 39. Kg2 {[%clk 0:00:13]}  Kd7 {[%clk 0:01:42]} 40. f6 {[%clk 0:00:14]}  Ke6 {[%clk 0:01:42]} 41. Kh2 {[%clk 0:00:12]}  Qg5 {[%clk 0:01:41]} 42. Kh3 {[%clk 0:00:11]}  c5 {[%clk 0:01:39]} 43. Kh2 {[%clk 0:00:10]}  b6 {[%clk 0:01:38]} 44. Kh3 {[%clk 0:00:10]}  a6 {[%clk 0:01:37]} 45. Kh2 {[%clk 0:00:11]}  b5 {[%clk 0:01:37]} 46. axb5 {[%clk 0:00:11]}  axb5 {[%clk 0:01:38]} 47. Kh3 {[%clk 0:00:12]}  Qe3+ {[%clk 0:01:38]} 48. Kg2 {[%clk 0:00:12]}  c4 {[%clk 0:01:38]} 49. bxc4 {[%clk 0:00:12]}  bxc4 {[%clk 0:01:39]} 50. Rf3 {[%clk 0:00:11]}  Qe2+ {[%clk 0:01:37]} 51. Rf2 {[%clk 0:00:11]}  Qg4+ {[%clk 0:01:37]} 52. Kh2 {[%clk 0:00:11]}  cxd3 {[%clk 0:01:37]} 53. cxd3 {[%clk 0:00:12]}  Qd1 {[%clk 0:01:37]} 54. Rb2 {[%clk 0:00:07]}  Kxf6 {[%clk 0:01:34]} 55. Rb6+ {[%clk 0:00:08]}  Kg5 {[%clk 0:01:34]} 56. Rd6 {[%clk 0:00:07]}  Qe2+ {[%clk 0:01:32]} 57. Kg3 {[%clk 0:00:07]}  Qe3+ {[%clk 0:01:32]} 58. Kg2 {[%clk 0:00:08]}  f6 {[%clk 0:01:32]} 59. Rd8 {[%clk 0:00:08]}  Kf4 {[%clk 0:01:31]} 60. Kh2 {[%clk 0:00:09]}  Qe2+ {[%clk 0:01:31]} 61. Kh3 {[%clk 0:00:09]}  Kf3 {[%clk 0:01:28]} 62. Rg8 {[%clk 0:00:08]}  Qf1+ {[%clk 0:01:28]} 63. Kh2 {[%clk 0:00:07]}  Qf2+ {[%clk 0:01:21]} 64. Kh3 {[%clk 0:00:07]}  Ke3 {[%clk 0:01:16]} 65. Rd8 {[%clk 0:00:08]}  Qf1+ {[%clk 0:01:13]} 66. Kg4 {[%clk 0:00:08]}  Qf4+ {[%clk 0:01:09]} 67. Kh3 {[%clk 0:00:08]}  Kf2 {[%clk 0:01:08]} 68. Rg8 {[%clk 0:00:08]}  Qh6+ {[%clk 0:01:06]} 69. Kg4 {[%clk 0:00:08]}  Qf4+ {[%clk 0:01:06]} 70. Kh5 {[%clk 0:00:08]}  Ke3 {[%clk 0:01:04]} 71. Rg4 {[%clk 0:00:08]}  Qf3 {[%clk 0:01:02]} 72. Kh4 {[%clk 0:00:07]}  Kxd3 {[%clk 0:01:01]} 73. Kh5 {[%clk 0:00:08]}  Qxg4+ {[%clk 0:01:00]} 74. Kh6 {[%clk 0:00:08]}  Kxe4 {[%clk 0:00:58]} 0-1


[Site "https://www.chess.com"]